fUSD/lending_fUSD_20241121
["ID","MTS","AMOUNT","RATE_DAILY","PERIOD"]
[342912261,1732203054096,-500.0,0.00041642,18]
[342912262,1732203054107,-500.0,0.00041642,18]
[342912263,1732203054119,-500.0,0.00041642,18]
[342912264,1732203054129,-552.9,0.00041642,18]
[342912265,1732203054140,-500.0,0.00041642,18]
[342912266,1732203054151,-500.0,0.00041642,18]
[342912267,1732203054162,-500.0,0.00041642,18]
[342912268,1732203054173,-500.0,0.00041642,18]
[342912269,1732203054185,-500.0,0.00041642,18]
[342912270,1732203054196,-199.65576575,0.00041642,18]
[342912271,1732203054207,-500.0,0.00041642,18]
[342912272,1732203054227,-500.0,0.00041642,18]
[342912273,1732203054240,-500.0,0.00041642,18]
[342912274,1732203054251,-500.0,0.00041642,18]
[342912275,1732203054262,-500.0,0.00041642,18]
[342912276,1732203054272,-500.0,0.00041642,18]
[342912277,1732203054283,-500.0,0.00041642,18]
[342912278,1732203054293,-500.0,0.00041642,18]
[342912279,1732203054304,-500.0,0.00041642,18]
[342912280,1732203054315,-500.0,0.00041642,18]
[342912281,1732203054325,-500.0,0.00041642,18]
[342912282,1732203054336,-500.0,0.00041642,18]
[342912283,1732203054347,-500.0,0.00041642,18]
[342912284,1732203054357,-500.0,0.00041642,18]
[342912285,1732203054369,-500.0,0.00041642,18]
[342912286,1732203054380,-500.0,0.00041642,18]
[342912287,1732203054390,-500.0,0.00041642,18]
[342912288,1732203054401,-500.0,0.00041642,18]
[342912289,1732203054412,-2586.7,0.00041642,18]
[342912290,1732203054423,-500.0,0.00041642,18]
[342912291,1732203054434,-500.0,0.00041642,18]
[342912292,1732203054445,-500.0,0.00041642,18]
[342912293,1732203054457,-543.58,0.00041642,18]
[342912294,1732203054473,-500.0,0.00041642,18]
[342912295,1732203054484,-543.0,0.00041642,18]
[342912296,1732203054495,-500.0,0.00041642,18]
[342912297,1732203054506,-661.91,0.00041642,18]
[342912298,1732203054517,-500.0,0.00041642,18]
[342912299,1732203054530,-956.88,0.00041642,18]
[342912300,1732203054541,-500.0,0.00041642,18]
[342912301,1732203054552,-500.0,0.00041642,18]
[342912302,1732203054563,-500.0,0.00041642,18]
[342912303,1732203054574,-500.0,0.00041642,18]
[342912304,1732203054585,-887.91,0.00041642,18]
[342912305,1732203054597,-500.0,0.00041642,18]
[342912306,1732203054608,-500.0,0.00041642,18]
[342912307,1732203055019,-438.42017638,0.00041642,18]
[342912308,1732203055036,-1615.25,0.00041642,18]
[342912309,1732203055058,-500.0,0.00041642,18]
[342912310,1732203055075,-500.0,0.00041642,18]
[342912311,1732203055085,-500.0,0.00041642,18]
[342912312,1732203055094,-500.0,0.00041642,18]
[342912313,1732203055103,-500.0,0.00041642,18]
[342912314,1732203055113,-1481.48,0.00041642,18]
[342912315,1732203055123,-500.0,0.00041642,18]
[342912316,1732203055133,-500.0,0.00041642,18]
[342912317,1732203055142,-520.89,0.00041642,18]
[342912318,1732203055151,-514.41,0.00041642,18]
[342912319,1732203055161,-500.0,0.00041642,18]
[342912320,1732203055172,-500.0,0.00041642,18]
[342912321,1732203055181,-500.0,0.00041642,18]
[342912322,1732203055191,-500.0,0.00041642,18]
[342912323,1732203055200,-500.0,0.00041642,18]
[342912324,1732203055213,-750.59,0.00041642,18]
[342912325,1732203055222,-3515.69,0.00041642,18]
[342912326,1732203055232,-500.0,0.00041642,18]
[342912327,1732203055242,-500.0,0.00041642,18]
[342912328,1732203055252,-500.0,0.00041642,18]
[342912329,1732203055262,-1845.68,0.00041642,18]
[342912330,1732203055271,-500.0,0.00041642,18]
[342912331,1732203055282,-500.0,0.00041642,18]
[342912332,1732203055291,-500.0,0.00041642,18]
[342912333,1732203055301,-500.0,0.00041642,18]
[342912334,1732203055311,-847.03,0.00041642,18]
[342912335,1732203055320,-500.0,0.00041642,18]
[342912336,1732203055330,-500.0,0.00041642,18]
[342912337,1732203055340,-500.0,0.00041642,18]
[342912338,1732203055350,-500.0,0.00041642,18]
[342912339,1732203055359,-1468.49,0.00041642,18]
[342912340,1732203055368,-659.38,0.00041642,18]
[342912341,1732203055378,-500.0,0.00041642,18]
[342912342,1732203055388,-500.0,0.00041642,18]
[342912343,1732203055398,-1085.82,0.00041642,18]
[342912344,1732203055407,-820.35,0.00041642,18]
[342912345,1732203055417,-1238.1,0.00041642,18]
[342912346,1732203055428,-500.0,0.00041642,18]
[342912347,1732203055437,-500.0,0.00041642,7]
[342912348,1732203055447,-500.0,0.00041642,18]
[342912349,1732203055456,-500.0,0.00041642,18]
[342912350,1732203055471,-500.0,0.00041642,18]
[342912351,1732203055480,-500.0,0.00041643,18]
[342912352,1732203055490,-500.0,0.00041643,18]
[342912353,1732203055499,-599.52,0.00041643,60]
[342912354,1732203055509,-500.0,0.00041643,18]
[342912355,1732203055518,-731.08,0.00041643,18]
[342912356,1732203055528,-500.0,0.00041643,18]
[342912357,1732203055538,-590.97,0.00041643,18]
[342912358,1732203055547,-500.0,0.00041643,18]
[342912359,1732203055557,-500.0,0.00041643,18]
[342912360,1732203055566,-500.0,0.00041643,18]
[342912361,1732203055576,-500.0,0.00041643,18]
[342912362,1732203055585,-500.0,0.00041643,18]
[342912363,1732203055595,-500.0,0.00041643,18]
[342912364,1732203055604,-500.0,0.00041643,18]
[342912365,1732203055614,-650.05,0.00041643,18]
[342912366,1732203055623,-500.0,0.00041643,18]
[342912367,1732203055632,-500.0,0.00041643,18]
[342912368,1732203055642,-500.0,0.00041643,18]
[342912369,1732203055651,-500.0,0.00041643,18]
[342912370,1732203055661,-300.0,0.00041643,18]
[342912371,1732203055671,-500.0,0.00041643,18]
[342912372,1732203055680,-1000.0,0.00041643,18]
[342912373,1732203055690,-579.12,0.00041643,18]
[342912374,1732203055699,-500.0,0.00041643,18]
[342912375,1732203055709,-552.53,0.00041643,18]
[342912376,1732203055724,-500.0,0.00041643,18]
[342912377,1732203055734,-500.0,0.00041643,18]
[342912378,1732203055743,-500.0,0.00041643,18]
[342912379,1732203055752,-500.0,0.00041643,18]
[342912380,1732203055764,-500.0,0.00041643,18]
[342912381,1732203055774,-500.0,0.00041643,18]
[342912382,1732203055783,-693.3,0.00041643,18]
[342912383,1732203055792,-639.62,0.00041643,18]
[342912384,1732203055803,-593.71,0.00041643,18]
[342912385,1732203055812,-500.0,0.00041643,18]
[342912386,1732203055821,-686.47,0.00041643,18]
[342912387,1732203055831,-756.48,0.00041643,18]
[342912388,1732203055840,-537.79,0.00041643,18]
[342912389,1732203055851,-500.0,0.00041643,18]
[342912390,1732203055860,-500.0,0.00041643,18]
[342912391,1732203055869,-847.2,0.00041643,18]
[342912392,1732203055878,-500.0,0.00041643,18]
[342912393,1732203055887,-598.42,0.00041643,18]
[342912394,1732203055896,-500.0,0.00041643,18]
[342912395,1732203055906,-585.82,0.00041643,18]
[342912396,1732203055916,-500.0,0.00041643,18]
[342912397,1732203055925,-500.0,0.00041643,18]
[342912398,1732203055935,-838.95,0.00041643,18]
[342912399,1732203055944,-500.0,0.00041643,18]
[342912400,1732203055953,-500.0,0.00041643,18]
[342912401,1732203055967,-530.94,0.00041643,18]
[342912402,1732203055976,-744.42,0.00041643,18]
[342912403,1732203055985,-551.41,0.00041643,18]
[342912404,1732203055994,-500.0,0.00041643,18]
[342912405,1732203056003,-500.0,0.00041643,18]
[342912406,1732203056012,-500.0,0.00041643,18]
[342912407,1732203056022,-577.75,0.00041643,18]
[342912408,1732203056031,-632.29,0.00041643,18]
[342912409,1732203056041,-500.0,0.00041643,18]
[342912410,1732203056050,-500.0,0.00041643,18]
[342912411,1732203056060,-500.0,0.00041643,18]
[342912412,1732203056070,-500.0,0.00041643,18]
[342912413,1732203056079,-652.24,0.00041643,18]
[342912414,1732203056089,-500.0,0.00041643,18]
[342912415,1732203056098,-500.0,0.00041643,18]
[342912416,1732203056108,-500.0,0.00041643,18]
[342912417,1732203056118,-500.0,0.00041643,18]
[342912418,1732203056127,-851.64,0.00041643,18]
[342912419,1732203056136,-567.46,0.00041643,18]
[342912420,1732203056146,-500.0,0.00041643,18]
[342912421,1732203056155,-500.0,0.00041643,18]
[342912422,1732203056165,-1006.3,0.00041643,18]
[342912423,1732203056174,-500.0,0.00041643,18]
[342912424,1732203056184,-500.0,0.00041643,18]
[342912425,1732203056194,-500.0,0.00041643,18]
[342912426,1732203056203,-500.0,0.00041643,18]
[342912427,1732203056215,-500.0,0.00041643,18]
[342912428,1732203056225,-614.6,0.00041643,18]
[342912429,1732203056234,-500.0,0.00041643,18]
[342912430,1732203056244,-795.12,0.00041643,18]
[342912431,1732203056254,-917.1,0.00041643,18]
[342912432,1732203056264,-525.37,0.00041643,18]
[342912433,1732203056273,-953.17,0.00041643,18]
[342912434,1732203056282,-500.0,0.00041643,18]
[342912435,1732203056292,-500.0,0.00041643,18]
[342912436,1732203056301,-500.0,0.00041643,18]
[342912437,1732203056311,-993.79,0.00041643,18]
[342912438,1732203056320,-879.52,0.00041643,18]
[342912439,1732203056330,-500.0,0.00041643,18]
[342912440,1732203056339,-500.0,0.00041643,18]
[342912441,1732203056349,-1023.5,0.00041643,18]
[342912442,1732203056359,-771.47,0.00041643,18]
[342912443,1732203056369,-389.24231107,0.00041643,18]
[342912444,1732203056379,-551.74,0.00041643,18]
[342912445,1732203056389,-500.0,0.00041643,18]
[342912446,1732203056399,-560.57,0.00041643,18]
[342912447,1732203056408,-500.0,0.00041643,18]
[342912448,1732203056418,-500.0,0.00041643,18]
[342912449,1732203056427,-640.52,0.00041643,18]
[342912450,1732203056437,-500.0,0.00041643,18]
[342912451,1732203056447,-1083.77,0.00041643,18]
[342912452,1732203056457,-500.0,0.00041643,18]
[342912453,1732203056470,-500.0,0.00041643,18]
[342912454,1732203056480,-500.0,0.00041643,18]
[342912455,1732203056489,-500.0,0.00041643,18]
[342912456,1732203056499,-500.0,0.00041643,18]
[342912457,1732203056509,-1588.78,0.00041643,18]
[342912458,1732203056519,-500.0,0.00041643,18]
[342912459,1732203056529,-1105.86,0.00041643,18]
[342912460,1732203056538,-500.0,0.00041643,18]
[342912461,1732203056548,-500.0,0.00041643,18]
[342912462,1732203056558,-500.0,0.00041643,18]
[342912463,1732203056567,-974.33,0.00041643,18]
[342912464,1732203056578,-500.0,0.00041643,18]
[342912465,1732203056587,-500.0,0.00041643,18]
[342912466,1732203056596,-500.0,0.00041643,18]
[342912467,1732203056606,-500.0,0.00041643,18]
[342912468,1732203056616,-500.0,0.00041643,18]
[342912469,1732203056625,-500.0,0.00041643,18]
[342912470,1732203056634,-1277.05,0.00041643,18]
[342912471,1732203056644,-500.0,0.00041643,18]
[342912472,1732203056654,-500.0,0.00041643,18]
[342912473,1732203056664,-500.0,0.00041643,18]
[342912474,1732203056674,-786.73,0.00041643,18]
[342912475,1732203056685,-500.0,0.00041643,18]
[342912476,1732203056694,-500.0,0.00041643,18]
[342912477,1732203056704,-500.0,0.00041643,18]
[342912478,1732203056717,-500.0,0.00041643,18]
[342912479,1732203056726,-1641.18,0.00041643,18]
[342912480,1732203056736,-500.0,0.00041643,18]
[342912481,1732203056745,-500.0,0.00041643,18]
[342912482,1732203056754,-916.52,0.00041643,18]
[342912483,1732203056764,-500.0,0.00041643,18]
[342912484,1732203056778,-520.1,0.00041643,18]
[342912485,1732203056788,-500.0,0.00041643,18]
[342912486,1732203056797,-669.71,0.00041643,18]
[342912487,1732203056807,-533.76,0.00041643,18]
[342912488,1732203056818,-650.4,0.00041643,18]
[342912489,1732203056828,-1305.08,0.00041643,18]
[342912490,1732203056837,-500.0,0.00041643,120]
[342912491,1732203056848,-650.25,0.00041643,18]
[342912492,1732203056858,-500.0,0.00041643,18]
[342912493,1732203056867,-500.0,0.00041643,18]
[342912494,1732203056876,-926.39,0.00041643,18]
[342912495,1732203056886,-731.05,0.00041643,18]
[342912496,1732203056896,-500.0,0.00041643,18]
[342912497,1732203056906,-500.0,0.00041643,18]
[342912498,1732203056916,-500.0,0.00041643,18]
[342912499,1732203056927,-500.0,0.00041643,18]
[342912500,1732203056937,-500.0,0.00041643,18]
[342912501,1732203056946,-500.0,0.00041643,18]
[342912502,1732203056956,-500.0,0.00041643,18]
[342912503,1732203056970,-624.75,0.00041643,18]
[342912504,1732203056984,-500.0,0.00041643,18]
[342912505,1732203056994,-500.0,0.00041643,18]
[342912506,1732203057003,-812.55,0.00041643,18]
[342912507,1732203057013,-500.0,0.00041643,18]
[342912508,1732203057023,-720.96,0.00041643,18]
[342912509,1732203057032,-500.0,0.00041643,18]
[342912510,1732203057042,-1901.24,0.00041643,18]
[342912511,1732203057051,-500.0,0.00041643,18]
[342912512,1732203057061,-500.0,0.00041643,18]
[342912513,1732203057071,-500.0,0.00041643,18]
[342912514,1732203057080,-10680.0,0.00041643,18]
[342912515,1732203057091,-765.15,0.00041643,18]
[342912516,1732203057100,-506.65,0.00041643,18]
[342912517,1732203057111,-797.84,0.00041643,18]
[342912518,1732203057121,-500.0,0.00041643,18]
[342912519,1732203057131,-500.0,0.00041643,18]
[342912520,1732203057140,-576.03,0.00041643,18]
[342912521,1732203057151,-865.82,0.00041643,18]
[342912522,1732203057160,-500.0,0.00041643,18]
[342912523,1732203057170,-500.0,0.00041643,18]
[342912524,1732203057180,-1451.99,0.00041643,18]
[342912525,1732203057190,-500.0,0.00041643,18]
[342912526,1732203057200,-500.0,0.00041643,18]
[342912527,1732203057209,-500.0,0.00041643,18]
[342912528,1732203057223,-1607.31,0.00041643,18]
[342912529,1732203057232,-500.0,0.00041643,18]
[342912530,1732203057242,-667.34,0.00041643,18]
[342912531,1732203057251,-1658.0,0.00041643,18]
[342912532,1732203057260,-500.0,0.00041643,18]
[342912533,1732203057271,-500.0,0.00041643,18]
[342912534,1732203057281,-1606.84,0.00041643,18]
[342912535,1732203057291,-1268.07,0.00041643,18]
[342912536,1732203057300,-537.46,0.00041643,18]
[342912537,1732203057311,-2509.52,0.00041643,18]
[342912538,1732203057320,-500.0,0.00041643,18]
[342912539,1732203057330,-803.03,0.00041643,18]
[342912540,1732203057339,-500.0,0.00041643,18]
[342912541,1732203057348,-500.0,0.00041643,18]
[342912542,1732203057357,-996.26,0.00041643,18]
[342912543,1732203057366,-3353.2,0.00041643,18]
[342912544,1732203057376,-500.0,0.00041643,18]
[342912545,1732203057386,-806.82,0.00041643,18]
[342912546,1732203057396,-623.97,0.00041643,18]
[342912547,1732203057406,-500.0,0.00041643,18]
[342912548,1732203057416,-500.0,0.00041643,7]
[342912549,1732203057425,-500.0,0.00041643,18]
[342912550,1732203057435,-500.0,0.00041643,18]
[342912551,1732203057610,-500.0,0.00041643,18]
[342912552,1732203057629,-500.0,0.00041643,18]
[342912553,1732203057639,-1070.68,0.00041643,18]
[342912554,1732203057650,-1008.71,0.00041643,18]
[342912555,1732203057661,-500.0,0.00041643,18]
[342912556,1732203057671,-930.53,0.00041643,18]
[342912557,1732203057680,-500.0,0.00041643,18]
[342912558,1732203057690,-988.17,0.00041643,18]
[342912559,1732203057699,-500.0,0.00041643,18]
[342912560,1732203057709,-500.0,0.00041643,18]
[342912561,1732203057721,-500.0,0.00041643,18]
[342912562,1732203057731,-506.34,0.00041643,18]
[342912563,1732203057741,-500.0,0.00041643,18]
[342912564,1732203057751,-1231.05,0.00041643,18]
[342912565,1732203057763,-1325.85,0.00041643,18]
[342912566,1732203057774,-3923.09,0.00041643,18]
[342912567,1732203057783,-613.27,0.00041643,18]
[342912568,1732203057794,-642.03,0.00041643,18]
[342912569,1732203057806,-2493.49,0.00041643,18]
[342912570,1732203057817,-951.77,0.00041643,18]
[342912571,1732203057828,-500.0,0.00041643,18]
[342912572,1732203057841,-1095.88,0.00041643,18]
[342912573,1732203057851,-1258.46,0.00041643,18]
[342912574,1732203057861,-1342.59,0.00041643,18]
[342912575,1732203057871,-831.99,0.00041643,18]
[342912576,1732203057882,-500.0,0.00041643,18]
[342912577,1732203057891,-825.55,0.00041643,18]
[342912578,1732203057901,-1517.83,0.00041643,18]
[342912579,1732203057911,-2436.07,0.00041643,18]
[342912580,1732203057921,-1140.98,0.00041643,18]
[342912581,1732203057931,-500.0,0.00041643,18]
[342912582,1732203057940,-500.0,0.00041643,18]
[342912583,1732203057950,-715.65,0.00041643,18]
[342912584,1732203057960,-532.56,0.00041643,18]
[342912585,1732203057972,-1429.85,0.00041643,18]
[342912586,1732203057981,-882.47,0.00041643,18]
[342912587,1732203057991,-4581.34,0.00041643,18]
[342912588,1732203058000,-673.52,0.00041643,7]
[342912589,1732203058010,-500.0,0.00041643,18]
[342912590,1732203058019,-3066.84,0.00041643,18]
[342912591,1732203058029,-537.67,0.00041643,18]
[342912592,1732203058038,-500.0,0.00041643,18]
[342912593,1732203058048,-500.0,0.00041643,18]
[342912594,1732203058058,-500.0,0.00041643,18]
[342912595,1732203058067,-500.0,0.00041643,18]
[342912596,1732203058077,-597.5,0.00041643,18]
[342912597,1732203058087,-500.0,0.00041643,18]
[342912598,1732203058097,-2272.21,0.00041643,18]
[342912599,1732203058107,-500.0,0.00041643,18]
[342912600,1732203058117,-1140.96,0.00041643,18]
[342912601,1732203058126,-500.0,0.00041643,18]
[342912602,1732203058136,-9426.66,0.00041643,2]
[342912603,1732203058146,-1695.24,0.00041643,18]
[342912604,1732203058156,-2207.11,0.00041643,18]
[342912605,1732203058168,-500.0,0.00041643,18]
[342912606,1732203058179,-772.2,0.00041643,18]
[342912607,1732203058189,-500.0,0.00041643,18]
[342912608,1732203058199,-504.29,0.00041643,18]
[342912609,1732203058210,-500.0,0.00041643,18]
[342912610,1732203058221,-500.0,0.00041643,18]
[342912611,1732203058231,-500.0,0.00041643,18]
[342912612,1732203058241,-638.86,0.00041643,18]
[342912613,1732203058250,-1207.24,0.00041643,18]
[342912614,1732203058260,-500.0,0.00041643,18]
[342912615,1732203058270,-13746.66,0.00041643,18]
[342912616,1732203058280,-822.02,0.00041643,18]
[342912617,1732203058290,-500.0,0.00041643,18]
[342912618,1732203058300,-500.0,0.00041643,18]
[342912619,1732203058310,-701.3,0.00041643,18]
[342912620,1732203058320,-500.0,0.00041643,18]
[342912621,1732203058330,-4447.59,0.00041643,18]
[342912622,1732203058339,-500.0,0.00041643,18]
[342912623,1732203058348,-500.0,0.00041643,18]
[342912624,1732203058357,-667.86,0.00041643,18]
[342912625,1732203058367,-1274.46,0.00041643,18]
[342912626,1732203058377,-965.8,0.00041643,18]
[342912627,1732203058387,-500.0,0.00041643,18]
[342912628,1732203058397,-654.42,0.00041643,18]
[342912629,1732203058408,-2707.92,0.00041643,18]
[342912630,1732203058419,-2163.44,0.00041643,18]
[342912631,1732203058428,-808.65,0.00041643,18]
[342912632,1732203058438,-500.0,0.00041643,18]
[342912633,1732203058448,-446.05718139,0.00041643,18]
[342912634,1732203058457,-150.0,0.00041655,2]
[342912635,1732203058474,-150.0,0.00041664,2]
[342912636,1732203058485,-150.01,0.00041667,2]
[342912637,1732203058495,-641.19400989,0.00041673,10]
[342912638,1732203058506,-240.5873389,0.00041689,4]
[342912639,1732203058516,-150.0,0.00041696,2]
[342912640,1732203058527,-150.0,0.00041698,2]
[342912641,1732203058538,-150.0,0.00041769,2]
[342912642,1732203058548,-892.47628881,0.00041779,2]
[342912643,1732203058558,-50000.0,0.00041779,120]
[342912644,1732203058568,-71890.7338,0.0004178,2]
[342912645,1732203058578,-500.0,0.0004178,2]
[342912646,1732203058588,-110864.0523,0.0004178,2]
[342912647,1732203058598,-153484.1709,0.0004178,2]
[342912648,1732203058608,-20858.7899,0.0004178,2]
[342912649,1732203058618,-15331.164,0.0004178,2]
[342912650,1732203058628,-150.0,0.00041796,2]
[342912651,1732203058638,-150.0,0.00041849,2]
[342912652,1732203058648,-951.5515004,0.00041869,2]
[342912653,1732203058658,-1603.3078963,0.00041869,2]
[342912654,1732203058668,-618.2831822,0.00041869,2]
[342912655,1732203058678,-150.0,0.00041871,2]
[342912656,1732203058688,-150.0,0.00041879,2]
[342912657,1732203058699,-684064.03273644,0.0004188,15]
[342912658,1732203058710,-151.0,0.0004188,14]
[342912659,1732203058725,-151.0,0.0004188,14]
[342912660,1732203058735,-151.0,0.0004188,14]
[342912661,1732203058745,-151.0,0.0004188,14]
[342912662,1732203058755,-151.0,0.0004188,14]
[342912663,1732203058767,-151.0,0.0004188,14]
[342912664,1732203058777,-151.0,0.0004188,14]
[342912665,1732203058787,-413.45988,0.0004188,14]
[342912666,1732203058798,-413.45988,0.0004188,14]
[342912667,1732203058808,-151.0,0.0004188,14]
[342912668,1732203058818,-500.0,0.0004188,15]
[342912669,1732203058828,-500.0,0.0004188,15]
[342912670,1732203058837,-500.0,0.0004188,15]
[342912671,1732203058850,-500.0,0.0004188,15]
[342912672,1732203058861,-500.0,0.0004188,15]
[342912673,1732203058871,-200.0,0.0004188,15]
[342912674,1732203058882,-500.0,0.0004188,15]
[342912675,1732203058893,-500.0,0.0004188,15]
[342912676,1732203058904,-500.0,0.0004188,15]
[342912677,1732203058914,-500.0,0.0004188,15]
[342912678,1732203058924,-500.0,0.0004188,15]
[342912679,1732203058934,-500.0,0.0004188,15]
[342912680,1732203058945,-500.0,0.0004188,15]
[342912681,1732203058954,-506.04971842,0.0004188,15]
[342912682,1732203058968,-151.0,0.0004188,14]
[342912683,1732203058979,-151.0,0.0004188,14]
[342912684,1732203058989,-1332.782171,0.0004188,14]
[342912685,1732203058998,-151.0,0.0004188,14]
[342912686,1732203059008,-151.0,0.0004188,14]
[342912687,1732203059018,-150.0,0.00041893,2]
[342912688,1732203059028,-150.0,0.00041898,2]
[342912689,1732203059040,-150.0,0.000419,2]
[342912690,1732203059051,-2900.0,0.000419,15]
[342912691,1732203059061,-500.0,0.00041916,18]
[342912692,1732203059071,-500.0,0.00041916,18]
[342912693,1732203059082,-211.55542951,0.00041916,18]
[342912694,1732203059092,-230.35238207,0.00041916,18]
[342912695,1732203059103,-500.0,0.00041916,18]
[342912696,1732203059112,-500.0,0.00041916,18]
[342912697,1732203059122,-500.0,0.00041916,18]
[342912698,1732203059132,-500.0,0.00041916,18]
[342912699,1732203059142,-500.0,0.00041916,18]
[342912700,1732203059152,-500.0,0.00041916,18]
[342912701,1732203059163,-500.0,0.00041916,18]
[342912702,1732203059173,-563.4,0.00041916,18]
[342912703,1732203059185,-560.63,0.00041916,18]
[342912704,1732203059194,-528.13,0.00041916,18]
[342912705,1732203059204,-500.0,0.00041916,18]
[342912706,1732203059218,-500.0,0.00041916,18]
[342912707,1732203059228,-500.0,0.00041916,18]
[342912708,1732203059239,-500.0,0.00041916,18]
[342912709,1732203059248,-560.23,0.00041916,18]
[342912710,1732203059259,-431.96468757,0.00041916,18]
[342912711,1732203059269,-500.0,0.00041916,18]
[342912712,1732203059280,-500.0,0.00041916,18]
[342912713,1732203059293,-500.0,0.00041916,18]
[342912714,1732203059303,-500.0,0.00041916,18]
[342912715,1732203059313,-500.0,0.00041916,18]
[342912716,1732203059323,-500.0,0.00041916,18]
[342912717,1732203059333,-204.28051635,0.00041916,18]
[342912718,1732203059343,-500.0,0.00041916,18]
[342912719,1732203059354,-500.0,0.00041916,18]
[342912720,1732203059364,-500.0,0.00041916,18]
[342912721,1732203059373,-500.0,0.00041916,18]
[342912722,1732203059384,-500.0,0.00041916,18]
[342912723,1732203059393,-500.0,0.00041916,18]
[342912724,1732203059403,-500.0,0.00041916,18]
[342912725,1732203059414,-638.76,0.00041916,18]
[342912726,1732203059424,-500.0,0.00041916,18]
[342912727,1732203059434,-500.0,0.00041916,18]
[342912728,1732203059444,-500.0,0.00041916,18]
[342912729,1732203059455,-500.0,0.00041916,18]
[342912730,1732203059468,-500.0,0.00041916,18]
[342912731,1732203059478,-500.0,0.00041916,18]
[342912732,1732203059488,-615.56,0.00041916,18]
[342912733,1732203059498,-500.0,0.00041916,18]
[342912734,1732203059507,-500.0,0.00041916,18]
[342912735,1732203059517,-500.0,0.00041916,18]
[342912736,1732203059527,-500.0,0.00041916,18]
[342912737,1732203059537,-530.62,0.00041916,18]
[342912738,1732203059547,-500.0,0.00041916,18]
[342912739,1732203059558,-500.0,0.00041916,18]
[342912740,1732203059569,-500.0,0.00041916,18]
[342912741,1732203059579,-500.0,0.00041916,18]
[342912742,1732203059589,-500.0,0.00041916,18]
[342912743,1732203059599,-500.0,0.00041916,18]
[342912744,1732203059609,-500.0,0.00041916,18]
[342912745,1732203059619,-500.0,0.00041916,18]
[342912746,1732203059628,-527.83,0.00041916,18]
[342912747,1732203059639,-500.0,0.00041916,18]
[342912748,1732203059648,-169.4117637,0.00041916,18]
[342912749,1732203059658,-581.55722713,0.00041916,18]
[342912750,1732203059670,-500.0,0.00041916,18]
[342912751,1732203059680,-840.51,0.00041916,18]
[342912752,1732203059689,-500.0,0.00041916,18]
[342912753,1732203059700,-500.0,0.00041916,18]
[342912754,1732203059710,-500.0,0.00041916,18]
[342912755,1732203059724,-500.0,0.00041916,18]
[342912756,1732203059735,-500.0,0.00041916,18]
[342912757,1732203059745,-500.0,0.00041916,18]
[342912758,1732203059755,-500.0,0.00041916,18]
[342912759,1732203059765,-500.0,0.00041916,18]
[342912760,1732203059779,-500.0,0.00041916,18]